[Event "WSTCC-65 2024"]
[Site "Krakow"]
[Date "2024.07.02"]
[Round "1.19"]
[White "MacElligott, Gerard"]
[Black "Gasik, Jadwiga"]
[Result "1-0"]
[ECO "A81"]
[WhiteElo "1993"]
[BlackElo "1780"]
[Annotator "NA RC"]
[PlyCount "35"]
[EventDate "2024.07.01"]
[EventType "team-tourn"]
[EventCountry "POL"]
[SourceTitle "playchess.com"]
[Source "ChessBase"]
[SourceQuality "1"]
[TimeControl "40/5400+30:1800+30"]

1. d4 {[%emt 0:01:35]} f5 {[%emt 0:00:15]} 2. g3 {[%emt 0:00:30]} c6 {[%emt 0:00:50]} 3. Bg2 {[%emt 0:00:10]} d6 {[%emt 0:01:28]} 4. Nf3 {[%emt 0:00:47]} Nf6 {[%emt 0:00:57]} 5. O-O {[%emt 0:03:26]} Qc7 {[%emt 0:00:16]} 6. Nbd2 {[%emt 0:10:51]} e5 {[%emt 0:00:37]} 7. dxe5 {[%emt 0:00:27]} dxe5 {[%emt 0:00:10]} 8. e4 {[%emt 0:00:47]} fxe4 {[%emt 0:13:51]} 9. Ng5 {[%emt 0:01:31]} e3 {[%emt 0:07:15]} 10. Nde4 {[%emt 0:10:03]} exf2+ {[%emt 0:10:26]} 11. Rxf2 {[%emt 0:03:40]} Ng4 {[%emt 0:06:06]} 12. Rf7 {[%emt 0:26:33]} Qb6+ {[%emt 0:00:11]} 13. Kh1 {[%emt 0:02:26]} h6 {[%emt 0:02:51]} 14. Rxf8+ {[%emt 0:07:04]} Rxf8 {[%emt 0:05:44]} 15. Nd6+ {[%emt 0:00:32]} Ke7 {[%emt 0:01:06]} 16. Nxc8+ {[%emt 0:01:44]} Rxc8 {[%emt 0:03:04]} 17. Qxg4 {[%emt 0:00:53]} Nd7 {[%emt 0:00:51]} 18. Qe6+ 1-0

[Event "WSTCC-65 2024"]
[Site "Krakow"]
[Date "2024.07.02"]
[Round "1.20"]
[White "Kane, Robert"]
[Black "Schulz, Michael"]
[Result "0-1"]
[ECO "A43"]
[WhiteElo "1849"]
[BlackElo "2109"]
[Annotator "NA RC"]
[PlyCount "54"]
[EventDate "2024.07.01"]
[EventType "team-tourn"]
[EventCountry "POL"]
[SourceTitle "playchess.com"]
[Source "ChessBase"]
[SourceQuality "1"]
[TimeControl "40/5400+30:1800+30"]

1. d4 {[%emt 0:00:17]} Nf6 {[%emt 0:00:08]} 2. Nf3 {[%emt 0:00:29]} c5 {[%emt 0:00:20]} 3. d5 {[%emt 0:00:31]} e6 {[%emt 0:00:09]} 4. Nc3 {[%emt 0:01:32]} b5 {[%emt 0:01:11]} 5. dxe6 {[%emt 0:03:07]} fxe6 {[%emt 0:00:06]} 6. Bg5 {[%emt 0:07:00]} b4 {[%emt 0:04:47]} 7. Ne4 {[%emt 0:03:13]} d5 {[%emt 0:00:48]} 8. Bxf6 {[%emt 0:06:48]} gxf6 {[%emt 0:00:07]} 9. Ned2 {[%emt 0:04:04]} Bb7 {[%emt 0:07:21]} 10. e3 {[%emt 0:04:04]} Bg7 {[%emt 0:02:18]} 11. Bb5+ {[%emt 0:09:27]} Nd7 {[%emt 0:05:25]} 12. Nb3 {[%emt 0:02:10]} Rc8 {[%emt 0:03:03]} 13. a3 {[%emt 0:09:20]} a6 {[%emt 0:01:11]} 14. Be2 {[%emt 0:09:01]} f5 {[%emt 0:01:15]} 15. axb4 {[%emt 0:06:17]} Bxb2 {[%emt 0:00:16]} 16. Na5 {[%emt 0:18:34]} Qb6 {[%emt 0:10:54]} 17. Nxb7 {[%emt 0:02:55]} Qxb4+ {[%emt 0:07:04]} 18. Kf1 {[%emt 0:06:59]} Qxb7 {[%emt 0:01:21]} 19. Rxa6 {[%emt 0:00:38]} Rc6 {[%emt 0:03:13]} 20. Ra4 {[%emt 0:00:02]} Bf6 {[%emt 0:02:08]} 21. h4 {[%emt 0:01:03]} Rb6 {[%emt 0:00:45]} 22. Qd2 {[%emt 0:00:54]} Rb1+ 23. Ne1 {[%emt 0:00:13]} O-O {[%emt 0:01:59]} 24. Kg1 {[%emt 0:00:27]} Ra8 {[%emt 0:01:38]} 25. Rxa8+ {[%emt 0:01:22]} Qxa8 {[%emt 0:00:17]} 26. f3 {[%emt 0:00:58]} Qa1 {[%emt 0:00:45]} 27. Kf2 {[%emt 0:01:55]} Bc3 {[%emt 0:00:17]} 0-1

[Event "WSTCC-65 2024"]
[Site "Krakow"]
[Date "2024.07.02"]
[Round "1.21"]
[White "Hogan, Pat"]
[Black "Vogt, Lothar"]
[Result "0-1"]
[ECO "A45"]
[WhiteElo "1936"]
[BlackElo "2292"]
[Annotator "NA RC"]
[PlyCount "48"]
[EventDate "2024.07.01"]
[EventType "team-tourn"]
[EventCountry "POL"]
[SourceTitle "playchess.com"]
[Source "ChessBase"]
[SourceQuality "1"]
[TimeControl "40/5400+30:1800+30"]

1. d4 {[%emt 0:00:04]} Nf6 {[%emt 0:00:03]} 2. Bf4 {[%emt 0:00:13]} g6 {[%emt 0:00:34]} 3. Nc3 {[%emt 0:00:15]} Bg7 {[%emt 0:00:42]} 4. e4 {[%emt 0:00:11]} d6 {[%emt 0:00:06]} 5. Nf3 {[%emt 0:00:41]} O-O {[%emt 0:00:42]} 6. Be2 {[%emt 0:01:16]} Nc6 {[%emt 0:03:08]} 7. O-O {[%emt 0:01:42]} Bg4 {[%emt 0:12:59]} 8. Be3 {[%emt 0:02:38]} e5 {[%emt 0:03:04]} 9. d5 {[%emt 0:00:17]} Ne7 {[%emt 0:00:15]} 10. Nd2 {[%emt 0:04:35]} Bxe2 {[%emt 0:02:52]} 11. Qxe2 {[%emt 0:00:32]} a6 {[%emt 0:02:02]} 12. f3 {[%emt 0:02:49]} Nh5 {[%emt 0:01:43]} 13. Nb3 {[%emt 0:01:31]} f5 {[%emt 0:00:57]} 14. g4 {[%emt 0:03:05]} fxg4 {[%emt 0:03:39]} 15. fxg4 {[%emt 0:00:46]} Nf4 {[%emt 0:00:14]} 16. Bxf4 {[%emt 0:02:35]} exf4 {[%emt 0:00:05]} 17. Qd2 {[%emt 0:00:41]} g5 {[%emt 0:06:56]} 18. Nd4 {[%emt 0:00:18]} Bxd4+ {[%emt 0:00:26]} 19. Qxd4 {[%emt 0:00:02]} Qd7 {[%emt 0:02:26]} 20. Qd1 {[%emt 0:01:15]} Ng6 {[%emt 0:01:09]} 21. h3 {[%emt 0:01:24]} h5 {[%emt 0:03:52]} 22. Kf2 {[%emt 0:01:57]} Ne5 {[%emt 0:02:10]} 23. Rg1 {[%emt 0:00:18]} hxg4 {[%emt 0:02:48]} 24. hxg4 {[%emt 0:00:14]} f3 {[%emt 0:01:46]} 0-1

[Event "WSTCC-65 2024"]
[Site "Krakow"]
[Date "2024.07.02"]
[Round "1.21"]
[White "Gibbons, Robert"]
[Black "Janocha, Wieslaw"]
[Result "0-1"]
[ECO "A46"]
[WhiteElo "1908"]
[BlackElo "2167"]
[Annotator "RC"]
[PlyCount "98"]
[EventDate "2024.07.01"]
[EventType "team-tourn"]
[EventCountry "POL"]
[SourceTitle "playchess.com"]
[Source "ChessBase"]
[SourceQuality "1"]
[TimeControl "40/5400+30:1800+30"]

1. d4 {[%emt 0:00:03]} Nf6 {[%emt 0:00:18]} 2. Nf3 {[%emt 0:00:28]} e6 {[%emt 0:00:31]} 3. e3 {[%emt 0:00:53]} c5 {[%emt 0:01:06]} 4. c3 {[%emt 0:01:22]} b6 {[%emt 0:01:39]} 5. Bd3 {[%emt 0:00:33]} Bb7 {[%emt 0:01:15]} 6. O-O {[%emt 0:00:50]} Nc6 {[%emt 0:02:21]} 7. Re1 {[%emt 0:01:33]} d5 {[%emt 0:03:35]} 8. Nbd2 {[%emt 0:03:03]} Be7 {[%emt 0:01:53]} 9. e4 {[%emt 0:01:18]} dxe4 {[%emt 0:05:09]} 10. Nxe4 {[%emt 0:01:18]} cxd4 {[%emt 0:01:12]} 11. cxd4 {[%emt 0:01:46]} O-O {[%emt 0:00:41]} 12. Nxf6+ Bxf6 13. Be3 {[%emt 0:15:38]} g6 {[%emt 0:04:49]} 14. Be4 {[%emt 0:06:50]} Na5 {[%emt 0:07:28]} 15. Bxb7 {[%emt 0:02:58]} Nxb7 {[%emt 0:00:08]} 16. Bf4 {[%emt 0:28:20]} Na5 {[%emt 0:07:56]} 17. Be5 {[%emt 0:03:38]} Bg7 {[%emt 0:01:13]} 18. Rc1 {[%emt 0:01:32]} Qd5 {[%emt 0:04:59]} 19. b3 {[%emt 0:04:20]} Nc6 {[%emt 0:06:53]} 20. Qe2 {[%emt 0:00:42]} Rac8 {[%emt 0:04:10]} 21. Rc4 {[%emt 0:02:01]} Nxe5 {[%emt 0:03:15]} 22. dxe5 {[%emt 0:08:15]} Rxc4 {[%emt 0:00:13]} 23. bxc4 {[%emt 0:00:26]} Qc5 {[%emt 0:01:15]} 24. Nd2 {[%emt 0:01:01]} Rc8 {[%emt 0:00:28]} 25. Kf1 {[%emt 0:00:48]} Bh6 {[%emt 0:01:55]} 26. Nb3 {[%emt 0:06:12]} Qxc4 {[%emt 0:01:20]} 27. Qxc4 {[%emt 0:00:20]} Rxc4 {[%emt 0:00:06]} 28. g3 {[%emt 0:00:10]} Kf8 {[%emt 0:07:55]} 29. f4 {[%emt 0:00:15]} g5 {[%emt 0:00:17]} 30. fxg5 {[%emt 0:02:01]} Bxg5 {[%emt 0:00:10]} 31. Re2 {[%emt 0:00:12]} Ke7 {[%emt 0:00:39]} 32. Kf2 {[%emt 0:01:10]} a5 {[%emt 0:10:31]} 33. Nd2 {[%emt 0:00:28]} Bxd2 {[%emt 0:01:43]} 34. Rxd2 {[%emt 0:00:03]} Re4 {[%emt 0:00:20]} 35. Rb2 {[%emt 0:00:39]} Rxe5 {[%emt 0:02:15]} 36. Rxb6 {[%emt 0:00:12]} Rc5 {[%emt 0:00:47]} 37. Rb7+ {[%emt 0:01:09]} Kf6 {[%emt 0:00:12]} 38. Rb2 Rc3 39. Ke2 {[%emt 0:01:59]} Ra3 {[%emt 0:06:07]} 40. Kf2 {[%emt 0:00:16]} h5 {[%emt 0:01:49]} 41. Kg2 {[%emt 0:30:54]} e5 {[%emt 0:32:42]} 42. h4 {[%emt 0:04:52]} Kf5 {[%emt 0:02:25]} 43. Kh3 {[%emt 0:00:16]} Ke4 {[%emt 0:02:22]} 44. Re2+ {[%emt 0:00:43]} Re3 {[%emt 0:00:41]} 45. Rxe3+ {[%emt 0:00:00]} Kxe3 {[%emt 0:00:00]} 46. g4 {[%emt 0:00:00]} Kf4 {[%emt 0:00:00]} 47. gxh5 {[%emt 0:00:00]} Kf5 {[%emt 0:00:00]} 48. Kg3 {[%emt 0:00:00]} Kf6 {[%emt 0:00:00]} 49. Kg4 {[%emt 0:00:00]} Kg7 {[%emt 0:00:00]} 0-1

[Event "WSTCC-65 2024"]
[Site "Krakow"]
[Date "2024.07.02"]
[Round "1.22"]
[White "Miltner, Arndt"]
[Black "Noone, Joe"]
[Result "1-0"]
[ECO "B22"]
[WhiteElo "2259"]
[BlackElo "1906"]
[Annotator "TA"]
[PlyCount "79"]
[EventDate "2024.07.01"]
[EventType "team-tourn"]
[EventCountry "POL"]
[SourceTitle "playchess.com"]
[Source "ChessBase"]
[SourceQuality "1"]
[TimeControl "40/5400+30:1800+30"]

{[%evp 9,79,18,35,31,37,36,36,39,35,21,42,42,45,41,37,5,22,20,20,0,14,-67,20,19,6,0,16,5,15,0,0,-12,21,8,33,32,43,18,30,15,25,14,12,15,12,20,21,9,25,31,23,13,31,33,58,65,206,206,219,229,260,267,298,298,298,297,281,216,224,132,117,129]} 1. e4 c5 2. c3 {[%emt 0:01:13]} d5 {[%emt 0:02:36]} 3. exd5 {[%emt 0:00:41]} Qxd5 {[%emt 0:00:33]} 4. Nf3 {[%emt 0:00:44]} Nf6 {[%emt 0:03:17]} 5. Na3 {[%emt 0:01:53]} a6 {[%emt 0:06:12]} 6. Be2 {[%emt 0:05:11]} e6 {[%emt 0:03:07]} 7. O-O {[%emt 0:03:30]} Nc6 {[%emt 0:12:24]} 8. Nc4 {[%emt 0:02:40] White is slightly better.} Qd8 {[%emt 0:03:06] Repels Nb6} 9. a4 {[%emt 0:02:54][%cal Ba2a4,Ba4a5][%mdl 32]} Be7 {[%emt 0:10:02]} 10. a5 {[%emt 0:06:20]} Nd5 {[%emt 0:02:26]} 11. d3 {[%emt 0:04:57]} O-O {[%emt 0:01:29]} 12. Be3 {[%emt 0:01:21]} Bd7 {[%emt 0:11:58]} 13. Qb3 {[%emt 0:02:31]} Rb8 {[%emt 0:09:42]} 14. Rfd1 {[%emt 0:02:18]} Qc7 {[%emt 0:01:57]} 15. Qa3 {[%emt 0:08:05]} ({White should play} 15. Re1 $11) 15... Na7 {[%emt 0:05:56]} (15... Nd4 $15 16. Bxd4 (16. cxd4 cxd4 $17) 16... cxd4) 16. Bg5 $11 {[%emt 0:10:22]} Bxg5 {[%emt 0:11:47]} 17. Nxg5 {[%emt 0:00:13]} Nb5 {[%emt 0:00:58]} 18. Qb3 {[%emt 0:01:23]} Bc6 {[%emt 0:01:42]} 19. Ne4 {[%emt 0:02:05][%cal Og2g3]} Nf4 {[%emt 0:01:50]} 20. Bf1 {[%emt 0:00:47]} Bd5 {[%emt 0:01:23]} 21. Qc2 {[%emt 0:04:12]} Rbd8 {[%emt 0:01:56]} 22. g3 {[%emt 0:02:53]} Ng6 {[%emt 0:00:14]} 23. Ne3 {[%emt 0:04:44]} Rd7 {[%emt 0:02:10]} 24. Bg2 {[%emt 0:03:36]} Rfd8 {[%emt 0:00:41]} 25. f4 {[%emt 0:02:00]} Nd6 {[%emt 0:01:29]} 26. Nxd5 {[%emt 0:06:41]} exd5 {[%emt 0:00:03]} 27. Nxd6 {[%emt 0:00:30]} Rxd6 {[%emt 0:00:52]} 28. d4 {[%emt 0:00:35]} c4 {[%emt 0:01:21]} 29. Re1 {[%emt 0:01:23]} Ne7 {[%emt 0:00:26]} 30. Qe2 {[%emt 0:06:02]} Kf8 {[%emt 0:01:36]} 31. Qh5 {[%emt 0:01:36]} h6 {[%emt 0:00:16]} 32. Re5 {[%emt 0:01:29]} Rf6 {[%emt 0:01:53] [#]} (32... Ng8 $14) 33. Rae1 $1 $18 {[%emt 0:01:17]} (33. Bxd5 Nxd5 34. Rxd5 Kg8) 33... Nc6 {[%emt 0:01:04]} 34. Rxd5 {[%emt 0:01:10]} Re8 {[%emt 0:00:04]} 35. Rxe8+ {[%emt 0:01:32]} Kxe8 {[%emt 0:00:01]} 36. Rc5 {[%emt 0:00:44][%cal Od4d5] Black must now prevent d5!} ({Resist} 36. Qe2+ $6 Qe7 37. Qxe7+ (37. Qxc4 Qe3+ 38. Kh1 Re6 $16) 37... Nxe7) 36... Qe7 {[%emt 0:00:31]} 37. Bxc6+ {[%emt 0:00:28]} ({Weaker is} 37. Rxc4 Qe3+ 38. Kf1 Qc1+ 39. Kf2 Re6 $16) 37... bxc6 38. Re5 ({And not} 38. Rxc4 Qe1+ 39. Kg2 Re6 $11) 38... Re6 39. Rxe6 (39. Qg4 $18 Kf8 40. Rxe6 fxe6 41. Qe2) 39... Qxe6 $16 40. Qe5 {Weighted Error Value: White=0.13 (very precise) /Black=0.16 (very precise) .  Mistake:       	White=2     	Black=2      Inaccurate:     	White=2     	Black=1      OK:         	White=14    	Black=10     Strong:       	White=1     	---} 1-0

[Event "WSTCC-65 2024"]
[Site "Krakow"]
[Date "2024.07.02"]
[Round "1.22"]
[White "Swierczewski, Marek"]
[Black "Kerr, Grant"]
[Result "1-0"]
[ECO "B50"]
[WhiteElo "2059"]
[BlackElo "1769"]
[Annotator "NA RC"]
[PlyCount "111"]
[EventDate "2024.07.01"]
[EventType "team-tourn"]
[EventCountry "POL"]
[SourceTitle "playchess.com"]
[Source "ChessBase"]
[SourceQuality "1"]
[TimeControl "40/5400+30:1800+30"]

1. e4 {[%emt 0:00:02]} c5 {[%emt 0:00:06]} 2. Nf3 {[%emt 0:00:07]} d6 {[%emt 0:00:05]} 3. c3 {[%emt 0:00:07]} Nf6 {[%emt 0:04:00]} 4. Bd3 {[%emt 0:00:07]} e6 {[%emt 0:01:35]} 5. Bc2 {[%emt 0:00:13]} Be7 {[%emt 0:01:09]} 6. O-O {[%emt 0:00:33]} O-O {[%emt 0:01:20]} 7. d4 {[%emt 0:00:17]} g6 {[%emt 0:18:52]} 8. Re1 {[%emt 0:07:32]} Nc6 {[%emt 0:03:49]} 9. Bh6 {[%emt 0:08:51]} Re8 {[%emt 0:00:07]} 10. dxc5 {[%emt 0:00:26]} dxc5 {[%emt 0:00:10]} 11. Nbd2 {[%emt 0:00:04]} e5 {[%emt 0:09:59]} 12. h3 {[%emt 0:00:35]} Be6 {[%emt 0:01:19]} 13. Qe2 {[%emt 0:00:21]} Qc7 {[%emt 0:07:00]} 14. Ng5 {[%emt 0:01:28]} Bf8 {[%emt 0:05:48]} 15. Bxf8 {[%emt 0:00:45]} Kxf8 {[%emt 0:00:57]} 16. Nxe6+ {[%emt 0:01:36]} Rxe6 {[%emt 0:00:29]} 17. Qe3 {[%emt 0:00:22]} Kg7 {[%emt 0:02:41]} 18. Qxc5 {[%emt 0:00:22]} Rc8 {[%emt 0:00:39]} 19. Nf3 {[%emt 0:02:00]} Re7 {[%emt 0:07:04]} 20. Rad1 {[%emt 0:03:09]} b6 21. Qe3 {[%emt 0:00:21]} Rd8 {[%emt 0:04:01]} 22. Rxd8 {[%emt 0:01:37]} Nxd8 {[%emt 0:01:18]} 23. Rd1 {[%emt 0:00:18]} h6 {[%emt 0:00:43]} 24. Rd2 {[%emt 0:07:28]} Ne6 {[%emt 0:00:18]} 25. g3 {[%emt 0:01:11]} Qc5 {[%emt 0:01:27]} 26. Qxc5 {[%emt 0:01:08]} Nxc5 {[%emt 0:00:01]} 27. Re2 {[%emt 0:00:11]} Nfd7 {[%emt 0:06:10]} 28. Nd2 {[%emt 0:02:19]} f6 {[%emt 0:02:45]} 29. Nc4 {[%emt 0:00:10]} Nb7 {[%emt 0:00:40]} 30. Ne3 {[%emt 0:00:14]} Ndc5 {[%emt 0:04:16]} 31. Nd5 {[%emt 0:00:26]} Rd7 {[%emt 0:00:20]} 32. b4 {[%emt 0:01:46]} Ne6 {[%emt 0:00:11]} 33. Bb3 {[%emt 0:02:10]} Nc7 {[%emt 0:01:24]} 34. a4 {[%emt 0:03:53]} h5 {[%emt 0:02:48]} 35. f3 {[%emt 0:00:28]} Nxd5 36. Bxd5 Kf8 {[%emt 0:06:50]} 37. Kf2 {[%emt 0:01:12]} Ke7 {[%emt 0:00:07]} 38. Ke3 {[%emt 0:00:19]} Nd6 {[%emt 0:03:11]} 39. f4 {[%emt 0:00:35]} Rc7 {[%emt 0:00:13]} 40. Kd3 {[%emt 0:00:14]} a5 {[%emt 0:03:26]} 41. bxa5 {[%emt 0:32:23]} bxa5 {[%emt 0:30:01]} 42. Rb2 {[%emt 0:00:11]} Rc5 {[%emt 0:00:00]} 43. fxe5 {[%emt 0:00:00]} fxe5 {[%emt 0:00:00]} 44. Rb6 {[%emt 0:00:00]} g5 {[%emt 0:00:00]} 45. c4 {[%emt 0:00:00]} h4 {[%emt 0:00:00]} 46. g4 {[%emt 0:00:00]} Kd7 {[%emt 0:00:00]} 47. Rb8 {[%emt 0:00:00]} Rc8 {[%emt 0:00:00]} 48. Rb6 {[%emt 0:00:00]} Rc5 {[%emt 0:00:00]} 49. Ra6 {[%emt 0:00:00]} Ke7 {[%emt 0:00:00]} 50. Ra7+ {[%emt 0:00:00]} Kf6 {[%emt 0:00:00]} 51. Rd7 {[%emt 0:00:00]} Ne8 {[%emt 0:00:00]} 52. Rf7+ {[%emt 0:00:00]} Kg6 {[%emt 0:00:00]} 53. Rf5 {[%emt 0:00:00]} Nf6 {[%emt 0:00:00]} 54. Rxe5 {[%emt 0:00:00]} Rc8 {[%emt 0:00:00]} 55. Re6 {[%emt 0:00:00]} Rb8 56. Re5 1-0

[Event "WSTCC-65 2024"]
[Site "Krakow"]
[Date "2024.07.02"]
[Round "1.23"]
[White "Harding, Tim D"]
[Black "Wenner, Tobias"]
[Result "1/2-1/2"]
[ECO "E95"]
[WhiteElo "1945"]
[BlackElo "2090"]
[Annotator "NA RC"]
[PlyCount "47"]
[EventDate "2024.07.01"]
[EventType "team-tourn"]
[EventCountry "POL"]
[SourceTitle "playchess.com"]
[Source "ChessBase"]
[SourceQuality "1"]
[TimeControl "40/5400+30:1800+30"]

1. c4 {[%emt 0:00:06]} Nf6 {[%emt 0:00:14]} 2. Nf3 {[%emt 0:00:12]} g6 {[%emt 0:00:48]} 3. Nc3 {[%emt 0:00:14]} Bg7 {[%emt 0:00:08]} 4. e4 {[%emt 0:00:15]} d6 {[%emt 0:00:07]} 5. d4 {[%emt 0:00:07]} O-O {[%emt 0:00:15]} 6. Be2 {[%emt 0:00:07]} Nbd7 {[%emt 0:00:49]} 7. O-O {[%emt 0:00:21]} e5 {[%emt 0:00:15]} 8. Re1 {[%emt 0:00:34]} Re8 {[%emt 0:00:46]} 9. dxe5 {[%emt 0:04:43]} dxe5 {[%emt 0:01:02]} 10. Bg5 {[%emt 0:08:30]} h6 {[%emt 0:07:17]} 11. Be3 {[%emt 0:00:56]} c6 {[%emt 0:01:03]} 12. h3 {[%emt 0:01:27]} Qe7 {[%emt 0:03:01]} 13. Qc2 {[%emt 0:05:26]} a5 {[%emt 0:02:56]} 14. a3 {[%emt 0:07:14]} Nc5 {[%emt 0:13:38]} 15. b4 {[%emt 0:01:21]} axb4 {[%emt 0:01:02]} 16. axb4 {[%emt 0:00:02]} Rxa1 {[%emt 0:00:30]} 17. Rxa1 {[%emt 0:00:05]} Na6 {[%emt 0:08:54]} 18. b5 {[%emt 0:15:14]} Nb4 {[%emt 0:10:21]} 19. Qb1 {[%emt 0:03:14]} cxb5 {[%emt 0:06:09]} 20. cxb5 {[%emt 0:05:36]} Be6 {[%emt 0:08:34]} 21. Na4 {[%emt 0:10:07]} Nd7 {[%emt 0:01:36]} 22. Nc5 {[%emt 0:05:19]} Nxc5 {[%emt 0:02:15]} 23. Qxb4 {[%emt 0:00:06]} Nb3 {[%emt 0:00:59]} 24. Qxe7 {[%emt 0:00:35]} 1/2-1/2

[Event "WSTCC-65 2024"]
[Site "Krakow"]
[Date "2024.07.02"]
[Round "1.23"]
[White "Booth, Anthony"]
[Black "Czajkowski, Ryszard"]
[Result "0-1"]
[ECO "D83"]
[WhiteElo "1742"]
[BlackElo "1975"]
[Annotator "NA RC"]
[PlyCount "96"]
[EventDate "2024.07.01"]
[EventType "team-tourn"]
[EventCountry "POL"]
[SourceTitle "playchess.com"]
[Source "ChessBase"]
[SourceQuality "1"]
[TimeControl "40/5400+30:1800+30"]

1. d4 {[%emt 0:00:03]} Nf6 {[%emt 0:00:06]} 2. c4 {[%emt 0:00:10]} g6 {[%emt 0:00:14]} 3. Nc3 {[%emt 0:00:12]} d5 {[%emt 0:00:12]} 4. Bf4 {[%emt 0:02:34]} Bg7 {[%emt 0:01:33]} 5. e3 {[%emt 0:02:12]} O-O {[%emt 0:02:29]} 6. Be2 {[%emt 0:01:54]} c5 {[%emt 0:01:45]} 7. Nf3 {[%emt 0:04:38]} Nc6 {[%emt 0:07:01]} 8. O-O {[%emt 0:02:17]} cxd4 {[%emt 0:00:53]} 9. exd4 {[%emt 0:02:33]} Bf5 {[%emt 0:06:51]} 10. Nh4 {[%emt 0:14:50]} Be6 {[%emt 0:03:44]} 11. c5 {[%emt 0:01:00]} Ne4 {[%emt 0:05:21]} 12. Be3 {[%emt 0:02:02]} Nxc5 {[%emt 0:11:26]} 13. Nf3 {[%emt 0:03:07]} Ne4 {[%emt 0:01:54]} 14. Ng5 {[%emt 0:10:51]} Nxg5 {[%emt 0:01:25]} 15. Bxg5 {[%emt 0:00:05]} Nxd4 {[%emt 0:00:42]} 16. Re1 {[%emt 0:04:35]} Qd7 {[%emt 0:11:27]} 17. Bf1 {[%emt 0:00:30]} Rfd8 {[%emt 0:01:26]} 18. Be3 {[%emt 0:00:38]} Nf5 {[%emt 0:03:03]} 19. Bc5 {[%emt 0:05:42]} b6 {[%emt 0:06:12]} 20. Ba3 {[%emt 0:01:42]} a6 {[%emt 0:00:51]} 21. Rc1 {[%emt 0:00:45]} b5 {[%emt 0:01:00]} 22. b3 {[%emt 0:01:13]} Rac8 {[%emt 0:01:00]} 23. Ne2 {[%emt 0:00:48]} Qb7 {[%emt 0:06:30]} 24. Nf4 {[%emt 0:02:50]} b4 {[%emt 0:00:57]} 25. Rxc8 {[%emt 0:00:20]} Bxc8 {[%emt 0:00:31]} 26. Bc1 {[%emt 0:00:09]} e5 {[%emt 0:03:40]} 27. Nd3 {[%emt 0:03:47]} e4 {[%emt 0:01:29]} 28. Nc5 {[%emt 0:01:23]} Qb6 {[%emt 0:00:45]} 29. Na4 {[%emt 0:02:47]} Qd6 {[%emt 0:00:19]} 30. Bb2 {[%emt 0:04:28]} Bxb2 {[%emt 0:01:30]} 31. Nxb2 {[%emt 0:00:02]} Bb7 {[%emt 0:00:51]} 32. g4 {[%emt 0:01:20]} Nh4 {[%emt 0:00:41]} 33. Bg2 {[%emt 0:01:48]} Nxg2 {[%emt 0:09:22]} 34. Kxg2 {[%emt 0:00:03]} d4 {[%emt 0:02:05]} 35. Nc4 {[%emt 0:01:25]} e3+ {[%emt 0:00:52]} 36. f3 {[%emt 0:00:16]} Qf6 {[%emt 0:00:40]} 37. Rf1 {[%emt 0:02:06]} Bd5 {[%emt 0:00:34]} 38. Nb2 {[%emt 0:04:27]} Re8 {[%emt 0:01:22]} 39. Qe2 {[%emt 0:00:22]} Bc6 {[%emt 0:00:24]} 40. Nc4 {[%emt 0:01:46]} Qf4 {[%emt 0:01:51]} 41. h3 {[%emt 0:30:59]} h5 {[%emt 0:31:37]} 42. Rd1 {[%emt 0:04:14]} hxg4 {[%emt 0:01:14]} 43. hxg4 {[%emt 0:00:46]} Qxg4+ {[%emt 0:00:42]} 44. Kh2 {[%emt 0:01:12]} Bxf3 {[%emt 0:00:22]} 45. Nxe3 {[%emt 0:00:26]} Rxe3 {[%emt 0:01:01]} 46. Qf2 {[%emt 0:03:13]} Qh5+ {[%emt 0:00:35]} 47. Kg3 {[%emt 0:00:28]} Bxd1+ {[%emt 0:00:27]} 48. Kf4 {[%emt 0:00:05]} Qe5# {[%emt 0:00:20]} 0-1

[Event "WSTCC-65 2024"]
[Site "Krakow"]
[Date "2024.07.02"]
[Round "1.24"]
[White "Dekan, Hans"]
[Black "Matthews, Gabriel"]
[Result "1-0"]
[ECO "B33"]
[WhiteElo "2083"]
[BlackElo "1917"]
[Annotator "NA RC"]
[PlyCount "81"]
[EventDate "2024.07.01"]
[EventType "team-tourn"]
[EventCountry "POL"]
[SourceTitle "playchess.com"]
[Source "ChessBase"]
[SourceQuality "1"]
[TimeControl "40/5400+30:1800+30"]

1. e4 c5 2. Nf3 {[%emt 0:01:08]} Nc6 {[%emt 0:00:45]} 3. d4 {[%emt 0:00:48]} cxd4 {[%emt 0:00:17]} 4. Nxd4 {[%emt 0:00:21]} Nf6 {[%emt 0:00:19]} 5. Nc3 {[%emt 0:00:24]} e5 {[%emt 0:00:32]} 6. Ndb5 {[%emt 0:02:47]} d6 {[%emt 0:00:36]} 7. Bg5 {[%emt 0:03:53]} a6 {[%emt 0:00:28]} 8. Na3 {[%emt 0:00:06]} b5 {[%emt 0:00:29]} 9. Nd5 {[%emt 0:01:07]} Be7 {[%emt 0:00:36]} 10. Bxf6 {[%emt 0:00:20]} Bxf6 {[%emt 0:00:43]} 11. c4 {[%emt 0:01:26]} O-O {[%emt 0:10:44]} 12. cxb5 {[%emt 0:02:06]} Nd4 {[%emt 0:03:35]} 13. Bd3 {[%emt 0:08:15]} Bb7 {[%emt 0:13:26]} 14. bxa6 {[%emt 0:02:58]} Bxd5 {[%emt 0:04:24]} 15. exd5 {[%emt 0:00:19]} Qa5+ {[%emt 0:11:01]} 16. Kf1 {[%emt 0:05:23]} Qxd5 {[%emt 0:02:59]} 17. f3 {[%emt 0:02:29]} Qe6 {[%emt 0:04:14]} 18. Nb5 {[%emt 0:06:19]} Nxb5 {[%emt 0:04:27]} 19. Bxb5 {[%emt 0:00:07]} d5 {[%emt 0:01:26]} 20. Qe2 {[%emt 0:04:36]} Rfc8 {[%emt 0:05:14]} 21. Rd1 {[%emt 0:10:35]} Bd8 {[%emt 0:03:39]} 22. b3 {[%emt 0:06:50]} Bb6 {[%emt 0:01:02]} 23. Qd3 {[%emt 0:00:37]} f5 {[%emt 0:11:26]} 24. g3 {[%emt 0:01:08]} Rd8 {[%emt 0:02:27]} 25. Kg2 {[%emt 0:01:30]} e4 {[%emt 0:03:01]} 26. Rhe1 {[%emt 0:02:27]} Rac8 {[%emt 0:03:06]} 27. Qe2 {[%emt 0:04:24]} Rc5 {[%emt 0:04:12]} 28. fxe4 {[%emt 0:01:16]} fxe4 {[%emt 0:02:06]} 29. Rc1 {[%emt 0:03:34]} Qc8 {[%emt 0:00:59]} 30. Rxc5 {[%emt 0:01:30]} Qxc5 {[%emt 0:00:09]} 31. a4 {[%emt 0:00:09]} Rf8 {[%emt 0:04:00]} 32. Rf1 {[%emt 0:01:11]} Rxf1 {[%emt 0:00:38]} 33. Qxf1 {[%emt 0:00:05]} Qe7 {[%emt 0:01:12]} 34. Qf5 {[%emt 0:01:12]} d4 {[%emt 0:01:54]} 35. Bc4+ {[%emt 0:00:31]} Kh8 {[%emt 0:00:14]} 36. a7 {[%emt 0:02:30]} Qd8 {[%emt 0:00:11]} 37. Qxe4 {[%emt 0:00:56]} Bxa7 {[%emt 0:00:10]} 38. Bd3 {[%emt 0:00:15]} g6 {[%emt 0:00:38]} 39. Qe5+ {[%emt 0:00:21]} Kg8 {[%emt 0:00:06]} 40. Bc4+ {[%emt 0:00:12]} Kf8 {[%emt 0:00:14]} 41. Qh8+ {[%emt 0:30:20]} 1-0